[Event "Bruges Masters 2019"]
[Site "Bruges"]
[Date "2019.08.13"]
[Round "6.4"]
[White "Dgebuadze, Alexandre"]
[Black "Van Malder, Dries"]
[Result "1-0"]
[ECO "B57"]
[WhiteElo "2495"]
[BlackElo "2178"]
[Annotator "ChessBase"]
[PlyCount "83"]
[EventDate "2019.08.11"]
[EventType "swiss"]
[EventCountry "BEL"]
[SourceTitle "playchess.com"]
[Source "ChessBase"]
[SourceQuality "1"]
[TimeControl "5400+30"]

1. e4 {[%emt 0:00:00]} c5 {[%emt 0:00:00]} 2. Nf3 {[%emt 0:00:00]} Nc6 {[%emt 0:00:00]} 3. d4 {[%emt 0:00:02]} cxd4 {[%emt 0:00:00]} 4. Nxd4 {[%emt 0:00:04]} Nf6 {[%emt 0:00:00]} 5. Nc3 {[%emt 0:00:06]} d6 {[%emt 0:00:05]} 6. Bc4 {[%emt 0:00:38]} Qb6 {[%emt 0:00:23]} 7. Nde2 {[%emt 0:04:53]} e6 {[%emt 0:01:08]} 8. O-O {[%emt 0:01:16]} Be7 {[%emt 0:01:50]} 9. Bb3 {[%emt 0:02:10]} a6 {[%emt 0:00:47]} 10. Qd3 {[%emt 0:00:46]} O-O {[%emt 0:03:48]} 11. Qg3 {[%emt 0:00:29]} Ne5 {[%emt 0:06:04]} 12. Kh1 {[%emt 0:03:53]} Qc7 {[%emt 0:01:12]} 13. f4 {[%emt 0:00:56]} Nc4 {[%emt 0:00:09]} 14. f5 {[%emt 0:21:14]} Kh8 {[%emt 0:08:32]} 15. Qh3 {[%emt 0:05:32]} b5 {[%emt 0:16:34]} 16. Bg5 {[%emt 0:05:28]} Bb7 {[%emt 0:07:48]} 17. Rf4 {[%emt 0:19:30]} Ng8 {[%emt 0:07:14]} 18. Rh4 {[%emt 0:02:34]} h6 {[%emt 0:00:39]} 19. Bxh6 {[%emt 0:05:20]} Bxh4 {[%emt 0:07:40]} 20. Bg5 {[%emt 0:00:15]} Nh6 {[%emt 0:01:04]} 21. Qxh4 {[%emt 0:00:10]} f6 {[%emt 0:00:40]} 22. Bxh6 {[%emt 0:01:42]} gxh6 {[%emt 0:00:14]} 23. Bxc4 {[%emt 0:04:22]} bxc4 {[%emt 0:00:09]} 24. Nf4 {[%emt 0:07:13]} Kh7 {[%emt 0:02:47]} 25. Nxe6 {[%emt 0:00:30]} Qb6 {[%emt 0:00:06]} 26. Nxf8+ {[%emt 0:02:28]} Rxf8 {[%emt 0:00:06]} 27. Re1 {[%emt 0:01:34]} Qxb2 {[%emt 0:01:55]} 28. Rb1 {[%emt 0:03:44]} Qxc3 {[%emt 0:00:04]} 29. Rxb7+ {[%emt 0:00:15]} Rf7 {[%emt 0:00:02]} 30. Rxf7+ {[%emt 0:02:23]} Kg8 {[%emt 0:00:07]} 31. Qg3+ {[%emt 0:01:43]} Qxg3 {[%emt 0:00:09]} 32. hxg3 {[%emt 0:00:02]} Kxf7 {[%emt 0:00:09]} 33. Kg1 {[%emt 0:00:08]} d5 {[%emt 0:01:25]} 34. exd5 {[%emt 0:00:14]} Ke7 {[%emt 0:00:06]} 35. Kf2 {[%emt 0:00:08]} Kd6 {[%emt 0:00:10]} 36. Ke3 {[%emt 0:01:00]} Kxd5 {[%emt 0:00:07]} 37. g4 {[%emt 0:00:13]} Ke5 {[%emt 0:08:15]} 38. c3 {[%emt 0:00:22]} Kd5 {[%emt 0:01:57]} 39. Kf4 {[%emt 0:00:09]} a5 {[%emt 0:00:44]} 40. a4 {[%emt 0:00:59]} Kd6 {[%emt 0:00:41]} 41. Ke4 {[%emt 0:00:17]} Kc5 {[%emt 0:00:07]} 42. g3 {[%emt 0:06:18] Kd5+} 1-0

[Event "Bruges Masters 2019"]
[Site "Bruges"]
[Date "2019.08.13"]
[Round "6.5"]
[White "Leenhouts, Koen"]
[Black "Van Doorn, Hans"]
[Result "1-0"]
[ECO "D36"]
[WhiteElo "2426"]
[BlackElo "1939"]
[Annotator "NA"]
[PlyCount "91"]
[EventDate "2019.08.11"]
[EventType "swiss"]
[EventCountry "BEL"]
[SourceTitle "playchess.com"]
[Source "ChessBase"]
[SourceQuality "1"]
[TimeControl "5400+30"]

1. d4 {[%emt 0:00:12]} Nf6 {[%emt 0:00:00]} 2. c4 {[%emt 0:00:06]} e6 {[%emt 0:00:12]} 3. Nc3 {[%emt 0:00:11]} d5 {[%emt 0:00:10]} 4. cxd5 {[%emt 0:00:07]} exd5 {[%emt 0:00:27]} 5. Bg5 {[%emt 0:00:09]} Be7 {[%emt 0:01:37]} 6. Qc2 {[%emt 0:01:14]} c6 {[%emt 0:04:24]} 7. e3 {[%emt 0:00:08]} Qb6 {[%emt 0:04:24]} 8. Bxf6 {[%emt 0:01:33]} Bxf6 {[%emt 0:01:14]} 9. Nxd5 {[%emt 0:00:15]} Qa5+ {[%emt 0:00:14]} 10. Nc3 {[%emt 0:00:09]} O-O {[%emt 0:00:45]} 11. Bd3 {[%emt 0:00:18]} h6 {[%emt 0:02:32]} 12. Nge2 {[%emt 0:00:15]} Na6 {[%emt 0:02:43]} 13. a3 {[%emt 0:07:18]} Nb4 {[%emt 0:06:38]} 14. Bh7+ {[%emt 0:00:12]} Kh8 {[%emt 0:00:21]} 15. Qb1 {[%emt 0:00:08]} Nd5 {[%emt 0:01:23]} 16. Be4 {[%emt 0:02:39]} Nxc3 {[%emt 0:08:36]} 17. Nxc3 {[%emt 0:02:32]} c5 {[%emt 0:02:59]} 18. b4 {[%emt 0:00:40]} cxb4 {[%emt 0:01:09]} 19. axb4 {[%emt 0:00:09]} Qd8 {[%emt 0:01:33]} 20. O-O {[%emt 0:02:58]} Be7 {[%emt 0:01:48]} 21. b5 {[%emt 0:06:06]} f5 {[%emt 0:02:10]} 22. Bf3 {[%emt 0:01:21]} Bd6 {[%emt 0:02:55]} 23. Qd3 {[%emt 0:02:44]} a5 {[%emt 0:03:22]} 24. bxa6 {[%emt 0:08:04]} Rxa6 {[%emt 0:00:30]} 25. g3 {[%emt 0:01:03]} Qg5 {[%emt 0:01:29]} 26. Bg2 {[%emt 0:05:40]} h5 {[%emt 0:03:40]} 27. h4 {[%emt 0:04:51]} Qh6 {[%emt 0:04:38]} 28. Ne2 {[%emt 0:09:52]} g5 {[%emt 0:02:23]} 29. hxg5 {[%emt 0:01:44]} Qxg5 {[%emt 0:00:14]} 30. f4 {[%emt 0:03:06]} Qg6 {[%emt 0:00:43]} 31. Kf2 {[%emt 0:01:14]} Kg7 {[%emt 0:03:06]} 32. Qb3 {[%emt 0:05:26]} Rf7 {[%emt 0:05:14]} 33. Rfc1 {[%emt 0:01:21]} Rxa1 {[%emt 0:01:24]} 34. Rxa1 {[%emt 0:01:11]} Be7 {[%emt 0:01:19]} 35. Bd5 {[%emt 0:05:02]} Rf6 {[%emt 0:05:22]} 36. Qc3 {[%emt 0:02:21]} Rf8 {[%emt 0:03:30]} 37. Qc7 {[%emt 0:01:51]} Qd6 {[%emt 0:02:02]} 38. Qxd6 {[%emt 0:00:28]} Bxd6 {[%emt 0:00:10]} 39. Rb1 {[%emt 0:00:12]} Be7 {[%emt 0:06:53]} 40. Bxb7 {[%emt 0:00:54]} Be6 {[%emt 0:02:46]} 41. Bf3 {[%emt 0:01:09]} h4 {[%emt 0:00:30]} 42. Rb7 {[%emt 0:00:10]} hxg3+ {[%emt 0:00:50]} 43. Nxg3 {[%emt 0:00:17]} Kf7 {[%emt 0:00:32]} 44. d5 {[%emt 0:01:09]} Bc8 {[%emt 0:00:22]} 45. Rc7 {[%emt 0:00:16]} Rd8 {[%emt 0:01:09]} 46. d6 {[%emt 0:00:12]} 1-0

[Event "Bruges Masters 2019"]
[Site "Bruges"]
[Date "2019.08.13"]
[Round "6.6"]
[White "Han, Yichen"]
[Black "Jonkman, Harmen"]
[Result "0-1"]
[ECO "C54"]
[WhiteElo "2217"]
[BlackElo "2394"]
[Annotator "NA"]
[PlyCount "70"]
[EventDate "2019.08.11"]
[EventType "swiss"]
[EventCountry "BEL"]
[SourceTitle "playchess.com"]
[Source "ChessBase"]
[SourceQuality "1"]
[TimeControl "5400+30"]

1. e4 {[%emt 0:00:00]} e5 {[%emt 0:00:00]} 2. Nf3 {[%emt 0:00:00]} Nc6 {[%emt 0:00:00]} 3. Bc4 {[%emt 0:00:00]} Bc5 {[%emt 0:00:00]} 4. c3 {[%emt 0:00:00]} Nf6 {[%emt 0:00:00]} 5. d3 {[%emt 0:00:00]} a5 {[%emt 0:01:36]} 6. O-O {[%emt 0:01:51]} d6 {[%emt 0:00:09]} 7. a4 {[%emt 0:00:44]} h6 {[%emt 0:00:24]} 8. Re1 {[%emt 0:01:10]} O-O {[%emt 0:00:36]} 9. Nbd2 {[%emt 0:01:02]} Nh5 {[%emt 0:04:26]} 10. Nf1 {[%emt 0:02:29]} Qf6 {[%emt 0:00:44]} 11. Be3 {[%emt 0:09:49]} Bg4 {[%emt 0:13:18]} 12. h3 {[%emt 0:05:26]} Bxf3 {[%emt 0:01:12]} 13. Qxf3 {[%emt 0:00:12]} Qxf3 {[%emt 0:00:10]} 14. gxf3 {[%emt 0:00:08]} Ne7 {[%emt 0:00:31]} 15. d4 {[%emt 0:07:11]} exd4 {[%emt 0:01:03]} 16. cxd4 {[%emt 0:01:00]} Bb4 {[%emt 0:00:08]} 17. Red1 {[%emt 0:01:13]} d5 {[%emt 0:04:05]} 18. Be2 {[%emt 0:01:45]} g5 {[%emt 0:20:39]} 19. Ng3 {[%emt 0:01:50]} Nxg3 {[%emt 0:08:25]} 20. fxg3 {[%emt 0:01:03]} f5 {[%emt 0:00:05]} 21. Bd3 {[%emt 0:14:21]} fxe4 {[%emt 0:00:32]} 22. fxe4 {[%emt 0:00:23]} Rf3 {[%emt 0:00:21]} 23. Re1 {[%emt 0:04:50]} Rxg3+ {[%emt 0:06:13]} 24. Kh2 {[%emt 0:02:06]} Bxe1 {[%emt 0:01:25]} 25. Rxe1 {[%emt 0:00:07]} Rf3 {[%emt 0:00:03]} 26. exd5 {[%emt 0:00:53]} Nf5 {[%emt 0:00:30]} 27. Bxf5 {[%emt 0:01:24]} Rxf5 {[%emt 0:00:02]} 28. Rc1 {[%emt 0:00:20]} Re8 {[%emt 0:00:50]} 29. Bg1 {[%emt 0:00:31]} Re7 {[%emt 0:01:28]} 30. Rc5 {[%emt 0:00:27]} Re2+ {[%emt 0:04:26]} 31. Kg3 {[%emt 0:00:31]} Rf1 {[%emt 0:00:21]} 32. Bh2 {[%emt 0:00:07]} Rf7 {[%emt 0:01:29]} 33. Rb5 {[%emt 0:01:40]} Kg7 {[%emt 0:03:31]} 34. Rxb7 {[%emt 0:00:15]} Kg6 {[%emt 0:00:08]} 35. Ra7 {[%emt 0:01:08]} Ref2 {[%emt 0:02:32]} 0-1

[Event "Bruges Masters 2019"]
[Site "Bruges"]
[Date "2019.08.13"]
[Round "6.7"]
[White "Van Osch, Mees"]
[Black "Cuvelier, Annelies"]
[Result "1-0"]
[ECO "C44"]
[WhiteElo "2316"]
[BlackElo "1808"]
[Annotator "NA"]
[PlyCount "65"]
[EventDate "2019.08.11"]
[EventType "swiss"]
[EventCountry "BEL"]
[SourceTitle "playchess.com"]
[Source "ChessBase"]
[SourceQuality "1"]
[TimeControl "5400+30"]

1. e4 {[%emt 0:00:00]} e5 {[%emt 0:00:00]} 2. Nf3 {[%emt 0:00:00]} Nc6 {[%emt 0:00:00]} 3. c3 {[%emt 0:00:00]} Nf6 {[%emt 0:01:33]} 4. d4 {[%emt 0:00:00]} exd4 {[%emt 0:00:32]} 5. e5 {[%emt 0:00:00]} Ng8 {[%emt 0:17:04]} 6. cxd4 {[%emt 0:00:17]} d5 {[%emt 0:00:50]} 7. Be3 {[%emt 0:03:57]} Bb4+ {[%emt 0:01:21]} 8. Nbd2 {[%emt 0:00:53]} Nge7 {[%emt 0:00:44]} 9. Bd3 {[%emt 0:01:06]} O-O {[%emt 0:04:21]} 10. Qc2 {[%emt 0:00:06]} h6 {[%emt 0:01:26]} 11. O-O-O {[%emt 0:07:23]} f5 {[%emt 0:03:51]} 12. g3 {[%emt 0:01:59]} Be6 {[%emt 0:01:51]} 13. h4 {[%emt 0:01:56]} Qd7 {[%emt 0:06:41]} 14. Kb1 {[%emt 0:03:46]} Nd8 {[%emt 0:01:48]} 15. Nb3 {[%emt 0:00:31]} Ng6 {[%emt 0:03:02]} 16. Bc1 {[%emt 0:02:58]} Rc8 {[%emt 0:02:15]} 17. h5 {[%emt 0:00:14]} Nh8 {[%emt 0:00:07]} 18. Nh4 {[%emt 0:03:06]} Be7 {[%emt 0:00:58]} 19. Ng2 {[%emt 0:11:59]} Nhf7 {[%emt 0:05:18]} 20. f4 {[%emt 0:00:13]} b6 {[%emt 0:01:22]} 21. Ne3 {[%emt 0:01:12]} c5 {[%emt 0:03:15]} 22. Nxf5 {[%emt 0:00:17]} Nc6 {[%emt 0:01:31]} 23. Nxe7+ {[%emt 0:03:00]} Nxe7 {[%emt 0:00:23]} 24. dxc5 {[%emt 0:00:45]} bxc5 {[%emt 0:01:10]} 25. Nxc5 {[%emt 0:00:15]} Qc6 {[%emt 0:00:58]} 26. Be3 {[%emt 0:05:28]} Bg4 {[%emt 0:01:27]} 27. Rc1 {[%emt 0:00:26]} Rfd8 {[%emt 0:00:50]} 28. Bd4 {[%emt 0:00:25]} a5 {[%emt 0:01:06]} 29. f5 {[%emt 0:00:41]} Rb8 {[%emt 0:01:47]} 30. f6 {[%emt 0:01:02]} gxf6 {[%emt 0:01:38]} 31. exf6 {[%emt 0:00:05]} Nc8 {[%emt 0:00:20]} 32. Bh7+ {[%emt 0:00:06]} Kh8 {[%emt 0:00:34]} 33. Qg6 {[%emt 0:00:06]} 1-0

[Event "Bruges Masters 2019"]
[Site "Bruges"]
[Date "2019.08.13"]
[Round "6.8"]
[White "Butzen, Robin"]
[Black "Goudriaan, Etienne"]
[Result "0-1"]
[ECO "E05"]
[WhiteElo "1967"]
[BlackElo "2341"]
[Annotator "NA"]
[PlyCount "40"]
[EventDate "2019.08.11"]
[EventType "swiss"]
[EventCountry "BEL"]
[SourceTitle "playchess.com"]
[Source "ChessBase"]
[SourceQuality "1"]
[TimeControl "5400+30"]

1. d4 {[%emt 0:00:00]} Nf6 {[%emt 0:00:00]} 2. c4 {[%emt 0:00:00]} e6 {[%emt 0:00:00]} 3. Nf3 {[%emt 0:00:00]} d5 {[%emt 0:00:00]} 4. g3 {[%emt 0:00:00]} Be7 {[%emt 0:00:45]} 5. Bg2 {[%emt 0:00:00]} O-O {[%emt 0:00:04]} 6. O-O {[%emt 0:00:00]} dxc4 {[%emt 0:00:35]} 7. Qc2 {[%emt 0:03:59]} b5 {[%emt 0:04:29]} 8. a4 {[%emt 0:15:45]} b4 {[%emt 0:00:56]} 9. Nbd2 {[%emt 0:05:55]} Bb7 {[%emt 0:02:36]} 10. Nxc4 {[%emt 0:03:36]} Be4 {[%emt 0:01:21]} 11. Qd1 {[%emt 0:04:11]} Nbd7 {[%emt 0:01:15]} 12. b3 {[%emt 0:02:53]} c5 {[%emt 0:03:09]} 13. Bb2 {[%emt 0:02:12]} Rc8 {[%emt 0:01:21]} 14. Rc1 {[%emt 0:03:20]} Qc7 {[%emt 0:00:57]} 15. e3 {[%emt 0:02:57]} Rfd8 {[%emt 0:02:11]} 16. Qe2 {[%emt 0:00:13]} Qb7 {[%emt 0:00:25]} 17. Na5 {[%emt 0:02:34]} Qd5 {[%emt 0:02:43]} 18. Nc4 {[%emt 0:07:05]} cxd4 {[%emt 0:01:56]} 19. Bxd4 {[%emt 0:00:08]} e5 {[%emt 0:08:13]} 20. Bxa7 {[%emt 0:04:39]} Qb7 {[%emt 0:05:44]} 0-1

[Event "Bruges Masters 2019"]
[Site "Bruges"]
[Date "2019.08.13"]
[Round "6.9"]
[White "Du, Chunhui"]
[Black "Sterck, Arno"]
[Result "1-0"]
[ECO "B49"]
[WhiteElo "2137"]
[BlackElo "2316"]
[Annotator "NA"]
[PlyCount "97"]
[EventDate "2019.08.11"]
[EventType "swiss"]
[EventCountry "BEL"]
[SourceTitle "playchess.com"]
[Source "ChessBase"]
[SourceQuality "1"]
[TimeControl "5400+30"]

1. e4 {[%emt 0:02:48]} c5 {[%emt 0:00:00]} 2. Nf3 {[%emt 0:00:23]} e6 {[%emt 0:00:00]} 3. Nc3 {[%emt 0:00:39]} Nc6 {[%emt 0:00:00]} 4. Be2 {[%emt 0:00:26]} a6 {[%emt 0:01:48]} 5. O-O {[%emt 0:00:57]} Qc7 {[%emt 0:00:05]} 6. d4 {[%emt 0:08:10]} cxd4 {[%emt 0:00:06]} 7. Nxd4 {[%emt 0:00:03]} Nf6 {[%emt 0:00:03]} 8. Be3 {[%emt 0:05:59]} Bb4 {[%emt 0:01:09]} 9. Na4 {[%emt 0:07:53]} Be7 {[%emt 0:00:10]} 10. Nxc6 {[%emt 0:02:44]} bxc6 {[%emt 0:00:19]} 11. Qd3 {[%emt 0:03:20]} c5 {[%emt 0:04:23]} 12. c4 {[%emt 0:00:57]} Bb7 {[%emt 0:00:45]} 13. Bf3 {[%emt 0:00:10]} Rb8 {[%emt 0:03:56]} 14. Rfe1 {[%emt 0:04:33]} Bd6 {[%emt 0:02:37]} 15. g3 {[%emt 0:09:26]} h5 {[%emt 0:07:14]} 16. Rad1 {[%emt 0:00:22]} Be5 {[%emt 0:00:28]} 17. Nxc5 {[%emt 0:06:05]} h4 {[%emt 0:00:41]} 18. Bd4 {[%emt 0:02:35]} hxg3 {[%emt 0:04:56]} 19. hxg3 {[%emt 0:01:05]} Bxg3 {[%emt 0:02:10]} 20. fxg3 {[%emt 0:00:28]} Qxg3+ {[%emt 0:00:04]} 21. Bg2 {[%emt 0:02:29]} Qh2+ {[%emt 0:00:06]} 22. Kf1 {[%emt 0:00:36]} Ng4 {[%emt 0:01:00]} 23. Bg1 {[%emt 0:01:01]} Qf4+ {[%emt 0:01:45]} 24. Qf3 {[%emt 0:00:11]} Qg5 {[%emt 0:00:04]} 25. Qg3 {[%emt 0:04:13]} O-O {[%emt 0:02:10]} 26. Be3 {[%emt 0:05:03]} Qh5 {[%emt 0:01:34]} 27. Nxd7 {[%emt 0:00:55]} f5 {[%emt 0:00:27]} 28. Nxf8 {[%emt 0:00:25]} Rxf8 {[%emt 0:00:05]} 29. Kg1 {[%emt 0:00:34]} Bxe4 {[%emt 0:04:22]} 30. Bxe4 {[%emt 0:06:02]} fxe4 {[%emt 0:00:12]} 31. Rf1 {[%emt 0:03:56]} Nxe3 {[%emt 0:00:39]} 32. Qxe3 {[%emt 0:03:05]} Qg4+ {[%emt 0:00:13]} 33. Kh2 {[%emt 0:00:51]} Rf3 {[%emt 0:00:29]} 34. Rxf3 {[%emt 0:01:16]} exf3 {[%emt 0:00:07]} 35. Qf2 {[%emt 0:00:56]} Qh5+ {[%emt 0:02:18]} 36. Kg1 {[%emt 0:00:15]} e5 {[%emt 0:02:27]} 37. Rd8+ {[%emt 0:04:33]} Kh7 {[%emt 0:10:33]} 38. Rf8 {[%emt 0:00:25]} Qg4+ {[%emt 0:01:30]} 39. Kh1 {[%emt 0:00:28]} e4 {[%emt 0:03:35]} 40. Qh2+ {[%emt 0:00:25]} Kg6 {[%emt 0:00:06]} 41. Qg1 {[%emt 0:00:03]} Kh5 {[%emt 0:00:16]} 42. Qxg4+ {[%emt 0:00:30]} Kxg4 {[%emt 0:00:04]} 43. Kg1 {[%emt 0:00:12]} e3 {[%emt 0:00:25]} 44. Kf1 {[%emt 0:00:05]} g5 {[%emt 0:00:12]} 45. c5 {[%emt 0:00:08]} Kg3 {[%emt 0:00:20]} 46. c6 {[%emt 0:00:07]} g4 {[%emt 0:01:52]} 47. c7 {[%emt 0:00:04]} Kh2 {[%emt 0:01:09]} 48. c8=Q {[%emt 0:00:11]} g3 {[%emt 0:00:02]} 49. Rh8# {[%emt 0:00:07]} 1-0

[Event "Bruges Masters 2019"]
[Site "Bruges"]
[Date "2019.08.13"]
[Round "6.10"]
[White "Offringa, Joost"]
[Black "Musabayeva, Diana"]
[Result "*"]
[ECO "A39"]
[WhiteElo "2291"]
[BlackElo "1679"]
[Annotator "NA"]
[PlyCount "102"]
[EventDate "2019.08.11"]
[EventType "swiss"]
[EventCountry "BEL"]
[SourceTitle "playchess.com"]
[Source "ChessBase"]
[SourceQuality "1"]
[TimeControl "5400+30"]

1. c4 {[%emt 0:00:00]} c5 {[%emt 1:30:30]} 2. Nf3 {[%emt 0:00:00]} Nf6 {[%emt 0:00:11]} 3. Nc3 {[%emt 0:00:01]} Nc6 {[%emt 0:00:08]} 4. d4 {[%emt 0:03:42]} cxd4 {[%emt 0:01:30]} 5. Nxd4 {[%emt 0:00:07]} d6 {[%emt 0:06:06]} 6. g3 {[%emt 0:00:52]} g6 {[%emt 0:01:16]} 7. Bg2 {[%emt 0:00:53]} Nxd4 {[%emt 0:01:34]} 8. Qxd4 {[%emt 0:00:05]} Bg7 {[%emt 0:00:09]} 9. O-O {[%emt 0:01:43]} O-O {[%emt 0:00:59]} 10. Qd3 {[%emt 0:06:04]} Rb8 {[%emt 1:22:01]} 11. a4 {[%emt 0:04:48]} Be6 {[%emt 0:03:44]} 12. Be3 {[%emt 0:03:36]} a6 {[%emt 0:08:51]} 13. b3 {[%emt 0:07:43]} Qd7 {[%emt 0:05:04]} 14. Rfd1 {[%emt 0:04:45]} Ng4 {[%emt 0:10:39]} 15. Bd4 {[%emt 0:05:00]} Ne5 {[%emt 0:03:53]} 16. Qd2 {[%emt 0:01:34]} Nc6 {[%emt 0:03:05]} 17. Bxg7 {[%emt 0:00:59]} Kxg7 {[%emt 0:46:15]} 18. Ne4 {[%emt 0:07:03]} f6 {[%emt 0:12:41]} 19. Qe3 {[%emt 0:04:03]} Bf7 {[%emt 0:03:50]} 20. Nc3 {[%emt 0:04:45]} Nb4 {[%emt 0:02:27]} 21. Qb6 {[%emt 0:02:14]} Nc6 {[%emt 0:01:50]} 22. Rd2 {[%emt 0:41:03]} Qd8 {[%emt 0:03:47]} 23. Qe3 {[%emt 0:00:20]} Qc7 {[%emt 0:01:42]} 24. Rc1 {[%emt 0:03:01]} Nb4 {[%emt 0:02:10]} 25. Rd4 {[%emt 0:00:59]} Qb6 {[%emt 0:02:43]} 26. a5 {[%emt 0:06:13]} Qa7 {[%emt 0:02:38]} 27. c5 {[%emt 0:02:54]} Qxc5 {[%emt 0:01:55]} 28. Na4 {[%emt 0:01:22]} Nc2 {[%emt 0:02:13]} 29. Nxc5 {[%emt 0:00:16]} Nxe3 {[%emt 0:00:06]} 30. Nd7 {[%emt 0:00:33]} Nf5 {[%emt 0:02:34]} 31. Rdd1 {[%emt 0:04:33]} Bxb3 {[%emt 0:02:28]} 32. Re1 {[%emt 0:02:08]} Ba4 {[%emt 0:04:06]} 33. Nxb8 {[%emt 0:00:22]} Rxb8 {[%emt 0:00:02]} 34. Rc7 {[%emt 0:00:45]} Bc6 {[%emt 0:02:22]} 35. Bxc6 {[%emt 0:20:05]} bxc6 {[%emt 0:00:03]} 36. Rxc6 {[%emt 0:00:11]} Ra8 {[%emt 0:00:07]} 37. e3 {[%emt 0:01:23]} Kf7 {[%emt 0:00:58]} 38. Rb1 {[%emt 0:00:10]} d5 {[%emt 0:00:44]} 39. Rbb6 {[%emt 0:01:01]} d4 {[%emt 0:00:47]} 40. g4 {[%emt 0:01:28]} Nh4 {[%emt 0:00:52]} 41. exd4 {[%emt 0:00:15]} Nf3+ {[%emt 0:00:12]} 42. Kg2 {[%emt 0:00:04]} Nxd4 {[%emt 0:00:11]} 43. Rxa6 {[%emt 0:00:04]} Rd8 {[%emt 0:02:00]} 44. Rc4 {[%emt 0:01:22]} Nb5 {[%emt 0:00:26]} 45. Rb6 {[%emt 0:00:59]} Nd6 {[%emt 0:00:31]} 46. Rc7 {[%emt 0:01:23]} Ke6 {[%emt 0:01:07]} 47. a6 {[%emt 0:00:32]} Kd5 {[%emt 0:01:52]} 48. a7 {[%emt 0:00:15]} Ne8 {[%emt 0:00:28]} 49. Rxe7 {[%emt 0:00:44]} Kc5 {[%emt 0:00:32]} 50. Rb8 {[%emt 0:00:06]} Rxb8 {[%emt 0:00:27]} 51. axb8=Q {[%emt 0:00:09]} Kc6 {[%emt 0:02:04]} *

[Event "Bruges Masters 2019"]
[Site "Bruges"]
[Date "2019.08.13"]
[Round "6.11"]
[White "Cornelisse, John"]
[Black "Wilschut, Peter"]
[Result "*"]
[ECO "D15"]
[WhiteElo "2180"]
[BlackElo "2279"]
[Annotator "NA"]
[PlyCount "74"]
[EventDate "2019.08.11"]
[EventType "swiss"]
[EventCountry "BEL"]
[SourceTitle "playchess.com"]
[Source "ChessBase"]
[SourceQuality "1"]
[TimeControl "5400+30"]

1. d4 {[%emt 0:00:00]} d5 {[%emt 0:00:00]} 2. c4 {[%emt 0:00:00]} c6 {[%emt 0:00:06]} 3. Nc3 {[%emt 0:00:16]} Nf6 {[%emt 0:00:05]} 4. Nf3 {[%emt 0:00:14]} a6 {[%emt 0:00:28]} 5. a4 {[%emt 0:00:46]} e6 {[%emt 0:00:18]} 6. Bf4 {[%emt 0:00:37]} a5 {[%emt 0:01:07]} 7. e3 {[%emt 0:00:50]} Bb4 {[%emt 0:03:17]} 8. Bd3 {[%emt 0:04:12]} dxc4 {[%emt 0:01:56]} 9. Bxc4 {[%emt 0:00:07]} Nd5 {[%emt 0:00:35]} 10. Qc2 {[%emt 0:00:45]} Nxf4 {[%emt 0:02:23]} 11. exf4 {[%emt 0:00:09]} Nd7 {[%emt 0:01:30]} 12. O-O {[%emt 0:02:34]} O-O {[%emt 0:01:34]} 13. Rad1 {[%emt 0:05:43]} Nb6 {[%emt 0:07:12]} 14. Be2 {[%emt 0:07:18]} Nd5 {[%emt 0:01:25]} 15. g3 {[%emt 0:00:56]} Bd7 {[%emt 0:13:02]} 16. Ne5 {[%emt 0:08:54]} Be8 {[%emt 1:03:02]} 17. Bg4 {[%emt 0:01:11]} g6 {[%emt 0:07:38]} 18. Rfe1 {[%emt 0:10:56]} b5 {[%emt 0:05:13]} 19. Re2 {[%emt 0:07:11]} Bxc3 {[%emt 0:04:34]} 20. bxc3 {[%emt 0:00:16]} b4 {[%emt 0:00:07]} 21. cxb4 {[%emt 0:02:34]} axb4 {[%emt 0:47:24]} 22. Ree1 {[%emt 0:00:38]} Nc3 {[%emt 0:07:01]} 23. Rd3 {[%emt 0:45:23]} Qa5 {[%emt 0:02:07]} 24. Bf3 {[%emt 0:01:57]} Rc8 {[%emt 0:02:14]} 25. f5 {[%emt 0:07:28]} exf5 {[%emt 0:07:25]} 26. g4 {[%emt 0:01:32]} Nd5 {[%emt 0:13:03]} 27. gxf5 {[%emt 0:02:34]} Nf4 {[%emt 0:02:01]} 28. Qd2 {[%emt 0:03:47]} g5 {[%emt 0:01:56]} 29. Rb3 {[%emt 0:03:38]} f6 {[%emt 0:01:56]} 30. Nc4 {[%emt 0:02:25]} Qd8 {[%emt 0:01:37]} 31. Rxb4 {[%emt 0:01:46]} c5 {[%emt 0:04:04]} 32. Rb7 {[%emt 0:02:51]} cxd4 {[%emt 0:00:51]} 33. Qb4 {[%emt 0:03:32]} Rc7 {[%emt 0:05:24]} 34. Rb8 {[%emt 0:12:29]} Rc8 {[%emt 0:00:35]} 35. Rb7 {[%emt 0:01:57]} Rc7 {[%emt 0:00:06]} 36. Rb8 {[%emt 0:01:27]} Rc8 {[%emt 0:04:23]} 37. Rb7 {[%emt 0:00:31]} Rc7 {[%emt 0:00:13]} *

[Event "Bruges Masters 2019"]
[Site "Bruges"]
[Date "2019.08.13"]
[Round "6.12"]
[White "Quesada Vera, Liordis"]
[Black "Kohtz, Andreas"]
[Result "1-0"]
[ECO "A05"]
[WhiteElo "2386"]
[BlackElo "1964"]
[Annotator "ChessBase"]
[PlyCount "62"]
[EventDate "2019.08.11"]
[EventType "swiss"]
[EventCountry "BEL"]
[SourceTitle "playchess.com"]
[Source "ChessBase"]
[SourceQuality "1"]
[TimeControl "5400+30"]

1. Nf3 {[%emt 0:04:50]} Nf6 {[%emt 0:00:00]} 2. b3 {[%emt 0:00:16]} g6 {[%emt 0:00:11]} 3. Bb2 {[%emt 0:00:05]} Bg7 {[%emt 0:00:08]} 4. g3 {[%emt 0:00:06]} O-O {[%emt 0:00:14]} 5. Bg2 {[%emt 0:00:05]} c5 {[%emt 0:01:06]} 6. c4 {[%emt 0:00:12]} d5 {[%emt 0:01:02]} 7. cxd5 {[%emt 0:00:06]} Nxd5 {[%emt 0:00:05]} 8. Bxg7 {[%emt 0:00:09]} Kxg7 {[%emt 0:00:06]} 9. O-O {[%emt 0:00:16]} Nc6 {[%emt 0:00:24]} 10. d4 {[%emt 0:00:13]} Nc7 {[%emt 0:02:06]} 11. dxc5 {[%emt 0:02:00]} Na6 {[%emt 0:01:54]} 12. Qc2 {[%emt 0:01:45]} Qd5 {[%emt 0:01:26]} 13. Rc1 {[%emt 0:01:14]} Kg8 {[%emt 0:01:07]} 14. Nbd2 {[%emt 0:01:19]} Rd8 {[%emt 0:03:51]} 15. a3 {[%emt 0:00:48]} Nd4 {[%emt 0:00:32]} 16. Nxd4 {[%emt 0:01:04]} Qxd4 {[%emt 0:00:10]} 17. Nf3 {[%emt 0:00:51]} Qf6 {[%emt 0:00:43]} 18. b4 {[%emt 0:01:01]} Bd7 {[%emt 0:00:38]} 19. Qc3 {[%emt 0:06:12]} Rac8 {[%emt 0:01:42]} 20. Ne5 {[%emt 0:04:15]} Rc7 {[%emt 0:02:48]} 21. Rd1 {[%emt 0:04:58]} Rdc8 {[%emt 0:01:41]} 22. Qe3 {[%emt 0:02:24]} Ba4 {[%emt 0:01:26]} 23. Rd4 {[%emt 0:00:15]} b6 {[%emt 0:02:22]} 24. Rf4 {[%emt 0:00:29]} Qh8 {[%emt 0:01:56]} 25. Rxf7 {[%emt 0:01:38]} e6 {[%emt 0:00:37]} 26. Qf4 {[%emt 0:01:54]} bxc5 {[%emt 0:01:04]} 27. b5 {[%emt 0:00:33]} Bxb5 {[%emt 0:01:12]} 28. Rd1 {[%emt 0:00:07]} Qxe5 {[%emt 0:00:49]} 29. Qxe5 {[%emt 0:00:08]} Kxf7 {[%emt 0:00:13]} 30. Rd6 {[%emt 0:00:13]} Re7 {[%emt 0:01:03]} 31. Bb7 {[%emt 0:00:51]} Ke8 {[%emt 0:02:13]} 1-0